Cogmind - Beta 16.1 @@@ ROGUE MODE // 2026.04.08 @ 14:15:18 Player: SunShine214 Result: Destroyed by 74-RVC(R) with Subdweller Machine Gun Performance ------------- Evolutions (0) 0 Regions Visited (2) 400 Robots Destroyed (22) 110 Value Destroyed (297) 297 Prototype IDs (0) 0 Alien Tech Used (0) 0 Bonus (0) 0 TOTAL SCORE: 807 Bonus ------- None Cogmind --------- Core Integrity 0/250 Matter 8/300 Energy 250/250 System Corruption 1% Temperature Cool (0) Movement Treading (160) Location -10/Subcaves Parts ------- > --- POWER (1) -------- Ion Engine > --- PROPULSION (2) --- Spiked Treads > --- UTILITY (2) ------ Sensor Array Utility Shielding > --- WEAPON (2) ------- Mining Claw > --- INVENTORY (5) ---- Structural Scanner Signal Interpreter Weapon Shielding Subdweller Laser Grenade Launcher Peak State ------------ > --- POWER ------------ Light Ion Engine > --- PROPULSION ------- Light Treads Light Treads > --- UTILITY ---------- Small Storage Unit Improved Terrain Scanner > --- WEAPON ----------- EM Pulse Gun Assault Rifle > --- INVENTORY -------- Sensor Array Signal Interpreter Mining Laser [Rating: 9] Favorites ----------- Power Light Ion Engine Engine Light Ion Engine Propulsion Light Treads Treads Light Treads Flight Unit Flight Unit Utility Small Storage Unit Device Sensor Array Storage Small Storage Unit Processor Targeting Computer Protection Utility Shielding Weapon Grenade Launcher Energy Gun EM Pulse Gun Ballistic Gun Assault Rifle Launcher Grenade Launcher Special Weapon Mining Laser Slashing Weapon Mining Claw Build | -11 -10 -10 ------- Run | Yrd Mat Sub Slots Evolved . | . . . Power . | . . . Propulsion . | . . . Utility . | . . . Weapon . | . . . Parts Attached 19 | 6 6 7 Power 4 | 1 2 1 Engine 4 | 1 2 1 Core . | . . . Reactor . | . . . Propulsion 5 | 2 . 3 Treads 3 | 2 . 1 Leg . | . . . Wheel . | . . . Hover . | . . . Flight 2 | . . 2 Utility 5 | 1 2 2 Device 2 | . 1 1 Storage 1 | 1 . . Processor 1 | . 1 . Hackware . | . . . Protection 1 | . . 1 Artifact . | . . . Weapon 5 | 2 2 1 Energy Gun 1 | 1 . . Energy Cannon . | . . . Ballistic Gun 1 | 1 . . Ballistic Cannon . | . . . Launcher 1 | . 1 . Special Weapon 1 | . 1 . Impact Weapon . | . . . Slashing Weapon 1 | . . 1 Piercing Weapon . | . . . Special Melee Weapon . | . . . Unidentified Prototypes . | . . . Parts Lost 4 | . 1 3 Power 1 | . 1 . Propulsion 3 | . . 3 Utility . | . . . Weapon . | . . . Highest Loss Streak 1 | . 1 1 To Critical Strikes . | . . . Average Backups 5 | . 6 4 Power . | . . . Propulsion . | . 1 . Utility 2 | . 2 3 Weapon 1 | . 1 . Tool/Special . | . . . Unused Backups 5 | . 1 4 Power . | . . . Propulsion . | . . . Utility 4 | . 1 3 Weapon 1 | . . 1 Tool/Special . | . . . Average Slot Usage (%) 93 | . 98 79 Engine 11 | . 13 6 Treads 22 | . 28 6 Flight 4 | . . 18 Device 4 | . 1 14 Storage 10 | . 14 . Processor 8 | . 11 . Protection 1 | . . 4 Energy Gun 10 | . 14 . Ballistic Gun 1 | . 2 . Launcher 11 | . 11 13 Slashing Weapon 3 | . . 12 Peak Build Rating 9 | 6 9 8 Average Rating 6 | 4 7 5 On Entrance 4 | . 6 7 Avg Prop Armor Cover (%) 3 | . . 3 Naked Turns . | . . . Heaviest Build 14 | 12 13 14 Greatest Support 40 | 40 40 40 Greatest Overweight (x) 1 | . . 1 Average Overweight (x) . | . . . Largest Inventory Capacity 8 | 8 8 8 Average Capacity 7 | 7 8 5 Most Carried 8 | 2 8 8 Average Carried 5 | . 6 4 Final Capacity 8 | 8 8 5 Final Carried 8 | 2 8 5 Class Distribution -------------------- 100% | Mutant Dominant Class ---------------- Mutant | -10/Materials Mutant | -10/Subcaves Resources | -11 -10 -10 ----------- Run | Yrd Mat Sub Matter Collected 268 | 164 104 . Remotely . | . . . Salvage Created 319 | 32 235 52 Parts 34 | 6 25 3 Haulers Intercepted 1 | . 1 . Recyclers Shooed . | . . . Parts Field Recycled . | . . . Retrieved Matter . | . . . Parts Self-Destructed 4 | . . 4 Prevented . | . . . Parts Restored . | . . . Kills | -11 -10 -10 ------- Run | Yrd Mat Sub Combat Hostiles Destroyed 11 | . 9 2 Guns 1 | . 1 . AOE 10 | . 8 2 Classes Destroyed 9 | 1 7 1 Worker 3 | . 3 . Builder 2 | . 2 . Tunneler 2 | 2 . . Hauler 1 | . 1 . Recycler 1 | . 1 . Operator 1 | . 1 . Watcher 1 | . 1 . Swarmer 9 | . 9 . Subdweller 2 | . . 2 Best Kill Streak 6 | 2 6 2 Combat Bots Only 3 | . 3 2 Max Kills in Single Turn 4 | 1 4 1 Gunslinging . | . . . Exploded 3 | . 3 1 Melee . | . . . Uniques/NPCs Destroyed . | . . . Combat | -11 -10 -10 -------- Run | Yrd Mat Sub Hostile Shots Fired 53 | . 25 28 Missed 18 | . 10 8 Hits 35 | . 15 20 Projectile 35 | . 15 20 Damage Taken 721 | . 362 359 Core 265 | . 115 150 Absorbed by Shields . | . . . Core Remaining (%) 100 | 100 . . Volleys Fired 27 | 2 21 4 Largest 2 | 2 2 1 Hottest 140 | 60 140 30 Shots Fired 50 | 4 42 4 Gun 33 | 4 29 . Cannon . | . . . Launcher 15 | . 11 4 Special 2 | . 2 . Kinetic 10 | 2 8 . Thermal 2 | . 2 . Explosive 15 | . 11 4 Electromagnetic 23 | 2 21 . Robot Hit Streak 6 | 3 6 5 Robot Miss Streak 3 | 1 3 . Penetration Max . | . . . Secondary Targets . | . . . Shots Hit Robots 28 | 3 15 10 Core Hits 30 | 2 25 3 Critical Kills . | . . . Critical Parts Destroyed . | . . . Critical Strikes 1 | . 1 . Corrupt 1 | . 1 . Melee Attacks 11 | . . 11 Impact . | . . . Slashing 11 | . . 11 Piercing . | . . . Sneak Attacks . | . . . Combat Hostiles . | . . . Follow-up Attacks . | . . . Damage Inflicted 1555 | 91 1088 376 Guns 248 | 26 222 . Cannons . | . . . Explosions 1164 | 65 866 233 Melee 143 | . . 143 Ramming . | . . . Kinetic 81 | 14 67 . Thermal 304 | 65 239 . Explosive 860 | . 627 233 Electromagnetic 167 | 12 155 . Impact . | . . . Slashing 143 | . . 143 Piercing . | . . . Highest Corruption 1 | . 1 1 Average Corruption 1 | . 1 1 Corruption Purged . | . . . Corruption Blocked . | . . . Overload Shots . | . . . Overflow Damage 64 | . 64 . Projectiles . | . . . Explosions 64 | . 64 . Melee . | . . . Knockbacks . | . . . Impact . | . . . Kinetic . | . . . Secondary . | . . . Self-Inflicted Damage 240 | . 240 . Shots 4 | . 4 . Rammed . | . . . Targets Rammed 1 | . 1 . Kicked . | . . . Crushed 1 | . 1 . Highest Temperature 80 | . 80 . Average Temperature 21 | . 21 . Received Heat Transfer 24 | . . 24 Siege Activations . | . . . Martial Activations . | . . . Shielding Activations . | . . . Robots Disrupted . | . . . Combat Hostiles . | . . . Robots Corrupted . | . . . Combat Hostiles . | . . . Parts Fried . | . . . Impact Corruptions . | . . . Robots Melted . | . . . Combat Hostiles . | . . . Parts Melted . | . . . Heat Transferred 300 | 50 250 . Parts Sabotaged . | . . . Parts Stolen . | . . . Parts Stripped . | . . . Power Chain Reactions 3 | 1 2 . Alert | -11 -10 -10 ------- Run | Yrd Mat Sub Maximum Alert Level 1 | . 1 . Low Security (%) 94 | 100 94 . Level 1 5 | . 5 . Level 2 . | . . . Level 3 . | . . . Level 4 . | . . . Level 5 . | . . . High Security . | . . . Max Security . | . . . Peak Influence 218 | 10 218 . Initial . | . . . Average 110 | . 119 . Influence Increases 532 | 10 447 75 Destroy 0b10 Robot/C 180 | . 180 . Destroy 0b10 Robot/NC 55 | 10 45 . Destroy Leader 34 | . 34 . Successful Hack 16 | . 16 . Disable Machine 90 | . 90 . Destroy Structure 82 | . 82 . Lose Combat Pursuer 75 | . . 75 Influence Decreases 532 | 10 343 179 Entered New Map 51 | . . 51 Time Decay 451 | 10 333 108 Lost Part 30 | . 10 20 Squads Dispatched . | . . . Investigation . | . . . Extermination . | . . . Reinforcement . | . . . Assault . | . . . Garrison . | . . . Intercept . | . . . Searches Triggered . | . . . Construction Impeded . | . . . Haulers Reinforced . | . . . Active Scanning Responses . | . . . Cargo Convoy Interrupts . | . . . Stealth | -11 -10 -10 --------- Run | Yrd Mat Sub Distress Signals 3 | . 3 . Communications Jammed . | . . . Distress Signals . | . . . Times Spotted 25 | . 17 8 Peak Tracking Total 7 | . 6 7 Tactical Retreats 2 | . . 2 Traps | -11 -10 -10 ------- Run | Yrd Mat Sub Traps Triggered 1 | . 1 . Indirectly . | . . . Trap Hack Attempts . | . . . Triggered . | . . . Disarmed . | . . . Reprogrammed . | . . . Reused . | . . . Traps Extracted . | . . . Installed . | . . . Triggered . | . . . Machines | -11 -10 -10 ---------- Run | Yrd Mat Sub Machines Disabled 6 | . 6 . Max in Single Turn 2 | . 2 . Machines Repaired . | . . . Machines Dismantled . | . . . Machines Sabotaged . | . . . Overloaded Fab Kills . | . . . Hacking | -11 -10 -10 --------- Run | Yrd Mat Sub Machines Accessed 4 | . 4 . Terminals 4 | . 4 . Fabricators . | . . . Repair Stations . | . . . Recycling Units . | . . . Scanalyzers . | . . . Garrison Access . | . . . Total Hacks 8 | . 8 . Successful 3 | . 3 . Failed 5 | . 5 . Catastrophic . | . . . Database Lockouts . | . . . Manual . | . . . Terminals 8 | . 8 . Fabricators . | . . . Repair Stations . | . . . Recycling Units . | . . . Scanalyzers . | . . . Garrison Access . | . . . Terminal Hacks 3 | . 3 . Locate Traps 1 | . 1 . Registered Components 1 | . 1 . Zone Layout 1 | . 1 . Fabricator Hacks . | . . . Repair Station Hacks . | . . . Recycling Unit Hacks . | . . . Scanalyzer . | . . . Garrison Access Hacks . | . . . Unauthorized Hacks . | . . . Terminals . | . . . Fabricators . | . . . Repair Stations . | . . . Recycling Units . | . . . Scanalyzers . | . . . Garrison Access . | . . . Data Cores Recovered . | . . . Used . | . . . Hacking Detections 1 | . 1 . Full Trace Events . | . . . Feedback Events . | . . . Feedback Blocked . | . . . Robot Schematics Acquired . | . . . Robots Built . | . . . Authchips . | . . . Time . | . . . Total Robot Build Rating . | . . . Part Schematics Acquired . | . . . Parts Built . | . . . Authchips . | . . . Time . | . . . Total Part Build Rating . | . . . Part Studies Acquired . | . . . Parts Repaired . | . . . Time . | . . . Parts Recycled . | . . . Recycled Matter . | . . . Retrieved Matter . | . . . Retrieved Components . | . . . Parts Scanalyzed . | . . . Part Schematics Acquired . | . . . Parts Damaged . | . . . Bothacking | -11 -10 -10 ------------ Run | Yrd Mat Sub Used RIF Installer . | . . . Robots Hacked . | . . . Non-combat . | . . . Combat . | . . . Robot Hacks Applied . | . . . Relay Couplers Released . | . . . Fabnet Peak Effective % . | . . . Robots Rewired . | . . . Allies Hacked . | . . . Hacks Repelled . | . . . Allies | -11 -10 -10 -------- Run | Yrd Mat Sub Total Allies . | . . . Largest Group . | . . . Highest-Rated Group . | . . . Highest-Rated Ally . | . . . Total Orders . | . . . Ally Attacks . | . . . Total Damage . | . . . Kills . | . . . Allies Corrupted . | . . . Allies Melted . | . . . Intel | -11 -10 -10 ------- Run | Yrd Mat Sub Active Infowar (turns) 371 | . 85 286 Sensors 286 | . . 286 Terrain 85 | . 85 . Robot Analysis Total . | . . . Derelict Logs Recovered 1 | . . 1 Drone Launches . | . . . Drone Recoveries . | . . . Exploration | -11 -10 -10 ------------- Run | Yrd Mat Sub Turns Passed 1198 | 67 845 286 Spaces Moved 899 | 34 458 407 Core 3 | 3 . . Treads 544 | 31 458 55 Legs . | . . . Wheels . | . . . Hover . | . . . Flight 352 | . . 352 Fastest Speed 37 | 50 160 37 Average Speed 112 | 150 160 55 Slowest Speed 160 | 160 160 160 Overloaded Moves . | . . . Propulsion Burnouts . | . . . Robots Hopped . | . . . Potential Cave-ins . | . . . Cave-ins Triggered . | . . . Exploration Rate (%) 39 | 3 81 34 Regions Visited 2 Branch Regions 1 Pre-discovered Areas 1 | . . 1 Known Exits Taken . | . . . Unknown Exits Taken 2 | 1 1 . Scrap Searched . | . . . Spaces Dug . | . . . Terrain Destroyed 108 | 5 88 15 Melee . | . . . Projectile . | . . . AOE 108 | 5 88 15 Terrain Rammed . | . . . Walls Destroyed . | . . . Machines Disabled . | . . . Actions | -11 -10 -10 --------- Run | Yrd Mat Sub Total 1009 | 43 522 444 Wait 29 | . 24 5 Move 897 | 33 457 407 Hop . | . . . Pick Up 12 | 2 9 1 Fast Attach 10 | 6 1 3 Attach 4 | . 1 3 Detach 4 | . . 4 Swap 6 | . 5 1 Drop 8 | . 3 5 Fire 27 | 2 21 4 Melee 11 | . . 11 Ram . | . . . Kick . | . . . Crush 1 | . 1 . Escape Stasis . | . . . Rewire . | . . . Trap . | . . . Miscellaneous . | . . . Route ------- -11/Scrapyard -10/Materials (discovered 5 exits: [*Mat x2] / [*Min x2] / [*Sub]) -10/Subcaves (discovered 1 exit: [*Mat]) History --------- Turn | Location | Event 14 | -11/Scrapyard | Discovered new exit (range 15) 68 | -11/Scrapyard | Entered Materials 221 | -10/Materials | Discovered new exit (range 16) 306 | -10/Materials | Build established: Mutant 366 | -10/Materials | Discovered new exit (range 4) 431 | -10/Materials | Discovered new exit (range 6) 756 | -10/Materials | Discovered new exit (range 11) 894 | -10/Materials | Discovered new exit (range 4) 913 | -10/Materials | Entered Subcaves 917 | -10/Subcaves | Learned location of Zion (-7) 922 | -10/Subcaves | Core integrity fell below 50% 968 | -10/Subcaves | Discovered new exit (range 8) 1066 | -10/Subcaves | Ambushed by Subdwellers from Twisted Machinery 1066 | -10/Subcaves | Shifting Twisted Machinery released Spk. Treads 1070 | -10/Subcaves | Shifting Twisted Machinery released Sub. Laser 1194 | -10/Subcaves | Core integrity fell below 20% 1199 | -10/Subcaves | Destroyed by 74-RVC(R) with Subdweller Machine Gun Last Messages --------------- 00928_ Dropped Lgt. Treads. 00928_ Dropped Sml. Storage Unit. 00968_ EXIT=FOUND 01021_ Subatomizers dissect the Lgt. Treads. 01066_ QL-E3U(R) emerges from the Twisted Machinery. Spk. Treads falls loose from the Twisted Machinery. 01066_ Flight Unit destroyed. 01066_ QL-E3U(R) destroyed. Sub. Laser falls loose from the Twisted Machinery. 01072_ FE-Q45(R) destroyed. 01073_ The unstable cave ceiling collapses. 01081_ Acquired Spk. Treads. 01089_ Acquired Ion Engine. 01092_ Acquired Utility Shielding. 01108_ Acquired Sub. Laser. 01165_ Flight Unit destroyed. 01182_ Dropped Lgt. Ion Engine. Map ----- +----------------------------------------------------+ | "" % """##??????????????????????????????? | | "" """ #??????????????????????????????? | | # """ "" #??????????????????????????????? | | ?# # """" "" ##??????????????????????????????? | | ?#########" "###???????????????????????????????? | | ?????????### "#?????????????????????????????????? | | ???????????# "#?????????????????????????????????? | | ??????????## ""#?????????????????????????????????? | | ???????#### ""#?????????????????????????????????? | | ???????# #?????????????????????????????????? | | ???????# ##??####???????????????????????????? | | ??????## #???#" ##??????????????????????????? | | ??????# ###???# #??????????????????????????? | | ??????# ##??#### #??????????????????????????? | | ??????## ""##?## #??????????????????????????? | | ???????## ### #???????????????????????????? | | ????????# ###?????????????????????????? | | ????????## #?????????????????????????? | | ????????## ###?????????????????????????? | | ????????# ##??????????????????????????? | | ????????# ###????????????????????????? | | ???????# ##???????????????????????? | | ???????## ###### ###?????????????????????? | | ????????# ##???# ###???????????????????? | | ????????# ## R #???????????????????? | | ????????# @ #???????????????????? | | ???????# *## #???????????????????? | | ???????# # #??????????????????? | | ???????# ### # ##??????????????????? | | ???????####??# #???????????????????? | | ?????????????# # ???????????????????? | | ?????????????## ??????????????????? | | ??????????????# #### ## [ ??????????????????? | | ??????????????#####??####? % ?????????????????? | | ?????????????????????????? * ##????????????????? | | ?????????????????????????? #?????????????????? | | ?????????????????????????? ##?????????????????? | | ?????????????????????????? ??????????????????? | | ?????????????????????????? ??????????????????? | | ?????????????????????????? ??????????????????? | | ?????????????????????????? ??????????????????? | | ?????????????????????????? ???????????????????? | | ?????????????????????????????????????????????????? | | ?????????????????????????????????????????????????? | | ?????????????????????????????????????????????????? | | ?????????????????????????????????????????????????? | | ?????????????????????????????????????????????????? | | ?????????????????????????????????????????????????? | | ?????????????????????????????????????????????????? | | ?????????????????????????????????????????????????? | +----------------------------------------------------+ Best States ------------- Heat Dissipation 25 Energy Generation 10 Energy Capacity 250 Matter Stores 198 Matter Capacity 300 Sight Range 16 Robot Scan Range 14 Terrain Scan Range 16 Terrain Scan Density 10 Utility Shielding 33 Evasion (%) 62 Targeting Accuracy 5 Recoil Reduction 2 Item Schematics ----------------- None Robot Schematics ------------------ None Fabricated ------------ Nothing Repaired ---------- Nothing Studied --------- None Alien Tech Used ----------------- None Achievements -------------- None Challenges ------------ None Game ------ Seed MatterSingularityLog Manual? 0 Play Time 00:09:51 Cumulative 124.7 hours Start 2026.04.08 @ 14:08:14 End 2026.04.08 @ 14:15:18 Sessions 1 Manual Loads 0 Difficulty Rogue Special Mode None Game No. 187 Rogue 187 Adventurer 0 Explorer 0 Win Type - Total 1 Types 1/0/0/0/0/0/0/0/0/0 Lore% 50 Gallery% 53 Achievement% 40 Wizard Run 0 Options --------- Layout 1 ASCII 0 Keyboard 1 Movement Arrows Keybinds 0 Fullscreen 1 Font 24/Smallcaps Map View 50x35 Zoom Use 0% Tactical HUD 1 Map Filters NONE Filters NONE Steam 1 RUN: 6146764a-6241-4171-a306-92332086a592